[Event "LASK Schackstudion IM Tournament"]
[Site "Lund, Sweden"]
[Date "2022.08.16"]
[Round "2.2"]
[White "Jacobsen, Mikkel Manosri"]
[Black "Larkin, Vadyslav"]
[Result "0-1"]
[TimeControl "90 minutes + 30 sec increment starting from move 1."]
[WhiteTitle "FM"]
[BlackTitle "IM"]
[WhiteFideId "1444514"]
[BlackFideId "14152894"]
[WhiteElo "2320"]
[BlackElo "2447"]

1. c4 {[%clk 01:30:49]} {[%emt 00:00:10]} Nf6 {[%clk 01:29:04]} {[%emt
00:01:56]} 2. Nf3 {[%clk 01:30:42]} {[%emt 00:00:37]} e6 {[%clk 01:29:12]}
{[%emt 00:00:22]} 3. g3 {[%clk 01:27:54]} {[%emt 00:03:18]} d5 {[%clk
01:26:35]} {[%emt 00:03:08]} 4. Bg2 {[%clk 01:27:53]} {[%emt 00:00:30]} dxc4
{[%clk 01:27:00]} {[%emt 00:00:06]} 5. Qc2 {[%clk 01:24:23]} {[%emt 00:04:00]}
Bd6 {[%clk 01:16:25]} {[%emt 00:11:06]} 6. Na3 {[%clk 01:23:45]} {[%emt
00:01:08]} Nc6 {[%clk 01:16:23]} {[%emt 00:00:32]} 7. Nxc4 {[%clk 01:23:41]}
{[%emt 00:00:34]} e5 {[%clk 01:16:48]} {[%emt 00:00:05]} 8. Qa4 {[%clk
01:10:50]} {[%emt 00:13:21]} O-O {[%clk 01:15:56]} {[%emt 00:01:21]} 9. Nxd6
{[%clk 01:11:12]} {[%emt 00:00:07]} cxd6 {[%clk 01:14:19]} {[%emt 00:02:07]} 10.
O-O {[%clk 01:09:21]} {[%emt 00:02:21]} Re8 {[%clk 01:14:09]} {[%emt 00:00:40]}
11. d3 {[%clk 01:07:26]} {[%emt 00:02:25]} h6 {[%clk 01:05:11]} {[%emt
00:09:29]} 12. b4 {[%clk 01:02:22]} {[%emt 00:05:33]} e4 {[%clk 01:04:49]}
{[%emt 00:00:51]} 13. dxe4 {[%clk 01:00:46]} {[%emt 00:02:07]} Rxe4 {[%clk
01:05:13]} {[%emt 00:00:06]} 14. a3 {[%clk 01:00:37]} {[%emt 00:00:39]} Rxe2
{[%clk 01:04:11]} {[%emt 00:01:33]} 15. b5 {[%clk 00:50:04]} {[%emt 00:11:03]}
Re4 {[%clk 01:03:55]} {[%emt 00:00:45]} 16. Qd1 {[%clk 00:48:57]} {[%emt
00:01:37]} Na5 {[%clk 01:03:40]} {[%emt 00:00:46]} 17. Nd4 {[%clk 00:45:05]}
{[%emt 00:04:21]} Re8 {[%clk 00:59:17]} {[%emt 00:04:53]} 18. Qd3 {[%clk
00:38:50]} {[%emt 00:06:45]} d5 {[%clk 00:59:19]} {[%emt 00:00:28]} 19. Bd2
{[%clk 00:37:14]} {[%emt 00:02:05]} Nc4 {[%clk 00:59:03]} {[%emt 00:00:46]} 20.
Bc3 {[%clk 00:37:38]} {[%emt 00:00:06]} Bd7 {[%clk 00:44:10]} {[%emt 00:15:23]}
21. a4 {[%clk 00:35:40]} {[%emt 00:02:28]} Ne5 {[%clk 00:42:42]} {[%emt
00:01:58]} 22. Qb1 {[%clk 00:33:48]} {[%emt 00:02:21]} Rc8 {[%clk 00:42:51]}
{[%emt 00:00:22]} 23. Rc1 {[%clk 00:31:48]} {[%emt 00:02:30]} Rc4 {[%clk
00:32:09]} {[%emt 00:11:12]} 24. a5 {[%clk 00:22:45]} {[%emt 00:09:34]} Qc8
{[%clk 00:32:05]} {[%emt 00:00:34]} 25. Bb2 {[%clk 00:21:34]} {[%emt 00:01:40]}
Bh3 {[%clk 00:30:47]} {[%emt 00:01:48]} 26. Bh1 {[%clk 00:20:06]} {[%emt
00:01:59]} Ne4 {[%clk 00:21:36]} {[%emt 00:09:41]} 27. Rxc4 {[%clk 00:17:50]}
{[%emt 00:02:46]} Nxc4 {[%clk 00:21:56]} {[%emt 00:00:09]} 28. a6 {[%clk
00:17:12]} {[%emt 00:01:09]} bxa6 {[%clk 00:21:14]} {[%emt 00:01:13]} 29. Rxa6
{[%clk 00:15:38]} {[%emt 00:02:04]} Ned2 {[%clk 00:18:44]} {[%emt 00:03:00]} 30.
Qd1 {[%clk 00:15:08]} {[%emt 00:01:00]} Nxb2 {[%clk 00:17:15]} {[%emt
00:01:59]} 31. Qxd2 {[%clk 00:15:29]} {[%emt 00:00:09]} Qc4 {[%clk 00:17:40]}
{[%emt 00:00:05]} 32. Ra1 {[%clk 00:14:46]} {[%emt 00:01:13]} Nd3 {[%clk
00:17:33]} {[%emt 00:00:36]} 33. Ne2 {[%clk 00:13:28]} {[%emt 00:01:48]} d4
{[%clk 00:13:08]} {[%emt 00:04:57]} 34. Bc6 {[%clk 00:11:44]} {[%emt 00:02:14]}
Re7 {[%clk 00:13:18]} {[%emt 00:00:19]} 35. f3 {[%clk 00:04:58]} {[%emt
00:07:16]} Nc1 {[%clk 00:08:52]} {[%emt 00:04:56]} 36. Rxc1 {[%clk 00:03:12]}
{[%emt 00:02:17]} Rxe2 {[%clk 00:08:36]} {[%emt 00:00:46]} 37. Qf4 {[%clk
00:00:38]} {[%emt 00:03:03]} Qa2 {[%clk 00:07:16]} {[%emt 00:01:50]} 38. g4
{[%clk 00:00:42]} {[%emt 00:00:26]} Re1+ {[%clk 00:07:42]} {[%emt 00:00:05]}
0-1

[Event "LASK Schackstudion IM Tournament"]
[Site "Lund, Sweden"]
[Date "2022.08.16"]
[Round "2.3"]
[White "Nord, Alexander"]
[Black "Jepson, Christian"]
[Result "0-1"]
[TimeControl "90 minutes + 30 sec increment starting from move 1."]
[WhiteTitle "CM"]
[BlackTitle "IM"]
[WhiteFideId "1738135"]
[BlackFideId "1701185"]
[WhiteElo "2227"]
[BlackElo "2395"]

1. d4 {[%clk 01:30:54]} {[%emt 00:00:06]} d6 {[%clk 01:29:08]} {[%emt
00:01:52]} 2. Nf3 {[%clk 01:31:15]} {[%emt 00:00:09]} g6 {[%clk 01:29:17]}
{[%emt 00:00:21]} 3. g3 {[%clk 01:31:38]} {[%emt 00:00:07]} Bg7 {[%clk
01:29:41]} {[%emt 00:00:06]} 4. Bg2 {[%clk 01:32:00]} {[%emt 00:00:07]} Nf6
{[%clk 01:29:50]} {[%emt 00:00:22]} 5. O-O {[%clk 01:32:14]} {[%emt 00:00:17]}
O-O {[%clk 01:30:13]} {[%emt 00:00:06]} 6. b3 {[%clk 01:32:40]} {[%emt
00:00:05]} e5 {[%clk 01:30:19]} {[%emt 00:00:24]} 7. dxe5 {[%clk 01:32:23]}
{[%emt 00:00:47]} dxe5 {[%clk 01:30:42]} {[%emt 00:00:06]} 8. Ba3 {[%clk
01:32:30]} {[%emt 00:00:24]} e4 {[%clk 01:31:04]} {[%emt 00:00:08]} 9. Bxf8
{[%clk 01:31:42]} {[%emt 00:01:18]} Qxf8 {[%clk 01:31:25]} {[%emt 00:00:09]} 10.
Nd4 {[%clk 01:31:47]} {[%emt 00:00:25]} e3 {[%clk 01:31:49]} {[%emt 00:00:06]}
11. f4 {[%clk 01:31:29]} {[%emt 00:00:48]} Nc6 {[%clk 01:32:03]} {[%emt
00:00:16]} 12. Nxc6 {[%clk 01:30:21]} {[%emt 00:01:39]} bxc6 {[%clk 01:32:27]}
{[%emt 00:00:05]} 13. Nc3 {[%clk 01:29:29]} {[%emt 00:01:22]} Bf5 {[%clk
01:31:40]} {[%emt 00:01:17]} 14. Qe1 {[%clk 01:27:23]} {[%emt 00:02:36]} h5
{[%clk 01:30:52]} {[%emt 00:01:18]} 15. h3 {[%clk 01:25:02]} {[%emt 00:02:51]}
Qe8 {[%clk 00:43:23]} {[%emt 00:47:59]} 16. Rd1 {[%clk 01:19:08]} {[%emt
00:06:23]} Bxc2 {[%clk 00:33:31]} {[%emt 00:10:23]} 17. Rc1 {[%clk 01:17:20]}
{[%emt 00:02:18]} Bf5 {[%clk 00:33:48]} {[%emt 00:00:13]} 18. Kh2 {[%clk
01:09:49]} {[%emt 00:08:01]} a5 {[%clk 00:25:42]} {[%emt 00:08:37]} 19. Rd1
{[%clk 00:41:24]} {[%emt 00:28:54]} Rb8 {[%clk 00:21:04]} {[%emt 00:05:09]} 20.
Rf3 {[%clk 00:39:25]} {[%emt 00:02:28]} Qe6 {[%clk 00:15:57]} {[%emt 00:05:37]}
21. Qg1 {[%clk 00:28:44]} {[%emt 00:11:10]} Re8 {[%clk 00:16:16]} {[%emt
00:00:12]} 22. Rc1 {[%clk 00:27:37]} {[%emt 00:01:37]} Bf8 {[%clk 00:12:24]}
{[%emt 00:04:23]} 23. Rff1 {[%clk 00:24:28]} {[%emt 00:03:38]} Ba3 {[%clk
00:11:55]} {[%emt 00:00:59]} 24. Rcd1 {[%clk 00:18:39]} {[%emt 00:06:18]} Bb4
{[%clk 00:07:41]} {[%emt 00:04:45]} 25. Rc1 {[%clk 00:17:43]} {[%emt 00:01:26]}
Ba3 {[%clk 00:06:57]} {[%emt 00:01:15]} 26. Rcd1 {[%clk 00:18:05]} {[%emt
00:00:07]} Bb4 {[%clk 00:07:19]} {[%emt 00:00:08]} 27. Rc1 {[%clk 00:18:30]}
{[%emt 00:00:05]} Kg7 {[%clk 00:07:29]} {[%emt 00:00:20]} 28. Qh1 {[%clk
00:16:15]} {[%emt 00:02:45]} Ng4+ {[%clk 00:02:11]} {[%emt 00:05:49]} 29. hxg4
{[%clk 00:08:01]} {[%emt 00:08:44]} hxg4 {[%clk 00:02:38]} {[%emt 00:00:03]} 30.
Kg1 {[%clk 00:07:09]} {[%emt 00:01:21]} Rh8 {[%clk 00:03:03]} {[%emt 00:00:06]}
31. Bxc6 {[%clk 00:05:02]} {[%emt 00:02:38]} Rxh1+ {[%clk 00:03:26]} {[%emt
00:00:06]} 32. Bxh1 {[%clk 00:05:30]} {[%emt 00:00:02]} Qa6 {[%clk 00:02:54]}
{[%emt 00:01:02]} 33. Rfe1 {[%clk 00:04:03]} {[%emt 00:01:56]} c6 {[%clk
00:01:08]} {[%emt 00:02:17]} 34. Kf1 {[%clk 00:03:44]} {[%emt 00:00:49]} Qa8
{[%clk 00:00:48]} {[%emt 00:00:51]} 35. Bg2 {[%clk 00:03:26]} {[%emt 00:00:47]}
Qh8 {[%clk 00:00:59]} {[%emt 00:00:20]} 36. Kg1 {[%clk 00:03:16]} {[%emt
00:00:41]} Kf8 {[%clk 00:00:56]} {[%emt 00:00:33]} 37. Red1 {[%clk 00:03:14]}
{[%emt 00:00:31]} Ke7 {[%clk 00:00:57]} {[%emt 00:00:29]} 38. Na4 {[%clk
00:03:16]} {[%emt 00:00:28]} Bd7 {[%clk 00:00:41]} {[%emt 00:00:46]} 39. Nb6
{[%clk 00:01:53]} {[%emt 00:01:53]} Bd2 {[%clk 00:00:46]} {[%emt 00:00:25]} 40.
Rc4 {[%clk 00:00:41]} {[%emt 00:01:43]} Be6 {[%clk 00:00:33]} {[%emt 00:00:44]}
41. Rxc6 {[%clk 00:00:59]} {[%emt 00:00:12]} Qb2 {[%clk 00:00:59]} {[%emt
00:00:03]} 42. Nd5+ {[%clk 00:00:59]} {[%emt 00:00:30]} Kf8 {[%clk 00:01:07]}
{[%emt 00:00:23]} 43. Nf6 {[%clk 00:00:33]} {[%emt 00:00:56]} Qxf6 {[%emt
00:00:09]} 0-1

[Event "LASK Schackstudion IM Tournament"]
[Site "Lund, Sweden"]
[Date "2022.08.16"]
[Round "2.4"]
[White "Rozentalis, Eduardas"]
[Black "Magnusson, Jorgen"]
[Result "1-0"]
[TimeControl "90 minutes + 30 sec increment starting from move 1."]
[WhiteTitle "GM"]
[BlackTitle "FM"]
[WhiteFideId "12800023"]
[BlackFideId "1700880"]
[WhiteElo "2493"]
[BlackElo "2292"]

1. e4 {[%emt 13:01:17]} c6 {[%emt 00:00:24]} 2. d4 {[%emt 00:00:22]} d5 {[%emt
00:00:19]} 3. Nd2 {[%emt 00:01:35]} dxe4 {[%emt 00:00:37]} 4. Nxe4 {[%emt
00:00:04]} Nf6 {[%emt 00:00:14]} 5. Nxf6+ {[%emt 00:00:26]} exf6 {[%emt
00:00:16]} 6. Bc4 {[%emt 00:00:17]} Na6 {[%emt 00:02:27]} 7. Bxa6 {[%emt
00:02:38]} Qa5+ {[%emt 00:01:04]} 8. c3 {[%emt 00:02:42]} Qxa6 {[%emt
00:00:32]} 9. Ne2 {[%emt 00:00:16]} Bd6 {[%emt 00:03:15]} 10. O-O {[%emt
00:03:03]} O-O {[%emt 00:01:16]} 11. Bf4 {[%emt 00:00:10]} Bxf4 {[%emt
00:07:55]} 12. Nxf4 {[%emt 00:00:04]} Qb5 {[%emt 00:00:30]} 13. Qd2 {[%emt
00:04:46]} Be6 {[%emt 00:19:54]} 14. Rfe1 {[%emt 00:01:54]} Rfe8 {[%emt
00:00:15]} 15. Re3 {[%emt 00:06:27]} Kf8 {[%emt 00:07:44]} 16. b3 {[%emt
00:02:01]} Qf5 {[%emt 00:05:31]} 17. Nd3 {[%emt 00:02:24]} Rad8 {[%emt
00:05:22]} 18. Qe2 {[%emt 00:14:12]} Bc8 {[%emt 00:08:54]} 19. Re1 {[%emt
00:01:15]} Rxe3 {[%emt 00:00:18]} 20. Qxe3 {[%emt 00:00:10]} Qd7 {[%emt
00:00:38]} 21. d5 {[%emt 00:17:57]} cxd5 {[%emt 00:07:05]} 22. Qxa7 {[%emt
00:03:31]} Qd6 {[%emt 00:10:55]} 23. Qd4 {[%emt 00:00:57]} Be6 {[%emt
00:00:36]} 24. a4 {[%emt 00:06:47]} b6 {[%emt 00:01:26]} 25. h3 {[%emt
00:01:25]} Bf5 {[%emt 00:03:19]} 26. Nb4 {[%emt 00:01:26]} Qc5 {[%emt
00:01:03]} 27. Rd1 {[%emt 00:03:11]} Be6 {[%emt 00:01:04]} 28. Rd3 {[%emt
00:03:04]} Qxd4 {[%emt 00:02:02]} 29. Rxd4 {[%emt 00:00:53]} Rc8 {[%emt
00:00:39]} 30. Rd3 {[%emt 00:00:42]} g5 {[%emt 00:04:56]} 31. Kf1 {[%emt
00:00:38]} Rc5 {[%emt 00:00:54]} 32. Ke2 {[%emt 00:00:19]} Ke7 {[%emt
00:00:22]} 33. Ke3 {[%emt 00:02:21]} h5 {[%emt 00:00:48]} 34. Kd4 {[%emt
00:02:19]} h4 {[%emt 00:02:15]} 35. Nc2 {[%emt 00:00:32]} Kd6 {[%emt 00:02:30]}
36. Na3 {[%emt 00:00:25]} f5 {[%emt 00:01:06]} 37. Nb5+ {[%emt 00:00:55]} Ke7
{[%emt 00:00:07]} 38. f3 {[%emt 00:02:32]} f4 {[%emt 00:00:27]} 39. Rd2 {[%emt
00:00:13]} f6 {[%emt 00:00:33]} 40. Re2 {[%emt 00:00:18]} Kd7 {[%emt 00:00:36]}
41. Kd3 {[%emt 00:00:14]} Bf7 {[%emt 00:01:12]} 42. Kd2 {[%emt 00:00:18]} Rc8
{[%emt 00:00:43]} 43. Re1 {[%emt 00:01:38]} Bg6 {[%emt 00:00:22]} 44. b4 {[%emt
00:02:03]} 1-0

[Event "LASK Schackstudion IM Tournament"]
[Site "Lund, Sweden"]
[Date "2022.08.16"]
[Round "2.5"]
[White "Kristensen, Kaare Hove"]
[Black "Jogstad, Martin"]
[Result "0-1"]
[TimeControl "90 minutes + 30 sec increment starting from move 1."]
[WhiteTitle "IM"]
[BlackTitle "FM"]
[WhiteFideId "1400940"]
[BlackFideId "1715364"]
[WhiteElo "2274"]
[BlackElo "2354"]

1. c4 {[%clk 01:30:54]} {[%emt 00:00:05]} e6 {[%clk 01:30:53]} {[%emt
00:00:08]} 2. Nc3 {[%clk 01:31:10]} {[%emt 00:00:13]} d5 {[%clk 01:31:17]}
{[%emt 00:00:07]} 3. d4 {[%clk 01:31:18]} {[%emt 00:00:21]} Be7 {[%clk
01:31:41]} {[%emt 00:00:06]} 4. Nf3 {[%clk 01:30:42]} {[%emt 00:01:06]} Nf6
{[%clk 01:31:51]} {[%emt 00:00:20]} 5. Bg5 {[%clk 01:30:41]} {[%emt 00:00:31]}
h6 {[%clk 01:32:16]} {[%emt 00:00:05]} 6. Bxf6 {[%clk 01:28:36]} {[%emt
00:02:35]} Bxf6 {[%clk 01:32:40]} {[%emt 00:00:06]} 7. e3 {[%clk 01:28:52]}
{[%emt 00:00:13]} O-O {[%clk 01:28:36]} {[%emt 00:04:34]} 8. Qd2 {[%clk
01:28:19]} {[%emt 00:01:04]} b6 {[%clk 01:09:30]} {[%emt 00:19:36]} 9. cxd5
{[%clk 01:18:57]} {[%emt 00:09:52]} exd5 {[%clk 01:09:46]} {[%emt 00:00:14]} 10.
O-O-O {[%clk 01:17:14]} {[%emt 00:02:11]} Be6 {[%clk 01:05:45]} {[%emt
00:04:31]} 11. Ne5 {[%clk 00:58:19]} {[%emt 00:19:25]} c5 {[%clk 00:59:13]}
{[%emt 00:07:02]} 12. f4 {[%clk 00:58:25]} {[%emt 00:00:24]} Qc8 {[%clk
00:48:19]} {[%emt 00:11:24]} 13. Kb1 {[%clk 00:52:04]} {[%emt 00:06:51]} Nc6
{[%clk 00:46:29]} {[%emt 00:02:20]} 14. Be2 {[%clk 00:47:28]} {[%emt 00:05:06]}
Rb8 {[%clk 00:34:13]} {[%emt 00:12:46]} 15. Ka1 {[%emt 00:21:37]} Nb4 {[%clk
00:15:39]} {[%emt 00:19:04]} 16. a3 {[%clk 00:21:01]} {[%emt 00:05:51]} Nc6
{[%clk 00:15:51]} {[%emt 00:00:17]} 17. Nxc6 {[%clk 00:14:01]} {[%emt
00:07:30]} Qxc6 {[%clk 00:16:17]} {[%emt 00:00:03]} 18. g4 {[%clk 00:11:57]}
{[%emt 00:02:35]} b5 {[%clk 00:14:57]} {[%emt 00:01:51]} 19. f5 {[%clk
00:11:16]} {[%emt 00:01:10]} b4 {[%clk 00:15:11]} {[%emt 00:00:17]} 20. fxe6
{[%clk 00:06:55]} {[%emt 00:04:51]} bxc3 {[%clk 00:15:35]} {[%emt 00:00:05]} 21.
exf7+ {[%clk 00:04:27]} {[%emt 00:02:57]} Rxf7 {[%clk 00:16:04]} {[%emt
00:00:02]} 22. Qxc3 {[%clk 00:04:08]} {[%emt 00:00:50]} Rfb7 {[%clk 00:12:56]}
{[%emt 00:03:37]} 23. Rd2 {[%clk 00:03:28]} {[%emt 00:01:10]} Rb3 {[%clk
00:12:29]} {[%emt 00:00:56]} 24. Qc1 {[%clk 00:03:29]} {[%emt 00:00:31]} Rxe3
{[%clk 00:10:37]} {[%emt 00:02:22]} 25. Qxc5 {[%clk 00:03:35]} {[%emt
00:00:23]} Qxc5 {[%clk 00:04:44]} {[%emt 00:06:24]} 26. dxc5 {[%clk 00:04:00]}
{[%emt 00:00:05]} Rxa3+ {[%clk 00:02:42]} {[%emt 00:02:32]} 27. Kb1 {[%clk
00:04:28]} {[%emt 00:00:02]} Rab3 {[%clk 00:02:59]} {[%emt 00:00:11]} 28. Ba6
{[%clk 00:01:34]} {[%emt 00:03:25]} Bxb2 {[%clk 00:01:54]} {[%emt 00:01:35]} 29.
Rxd5 {[%clk 00:01:37]} {[%emt 00:00:28]} Bf6+ {[%clk 00:01:46]} {[%emt
00:00:38]} 30. Kc2 {[%clk 00:01:50]} {[%emt 00:00:17]} Rc3+ {[%clk 00:01:55]}
{[%emt 00:00:21]} 31. Kd2 {[%clk 00:02:04]} {[%emt 00:00:15]} Rb2+ {[%clk
00:02:03]} {[%emt 00:00:22]} 32. Ke1 {[%clk 00:02:20]} {[%emt 00:00:14]} Rc1+
{[%clk 00:02:16]} {[%emt 00:00:16]} 33. Rd1 {[%clk 00:02:43]} {[%emt 00:00:07]}
Bh4+ {[%clk 00:02:24]} {[%emt 00:00:22]} 0-1

[Event "LASK Schackstudion IM Tournament"]
[Site "Lund, Sweden"]
[Date "2022.08.16"]
[Round "3.1"]
[White "Kucuksari, Kaan"]
[Black "Jacobsen, Mikkel Manosri"]
[Result "0-1"]
[TimeControl "90 minutes + 30 sec increment starting from move 1."]
[WhiteTitle "FM"]
[BlackTitle "FM"]
[WhiteFideId "6380166"]
[BlackFideId "1444514"]
[WhiteElo "2398"]
[BlackElo "2320"]

1. d4 {[%clk 01:30:59]} {[%emt 03:24:38]} d5 {[%clk 01:30:56]} {[%emt
00:00:04]} 2. c4 {[%clk 01:31:25]} {[%emt 00:00:05]} e6 {[%clk 01:31:23]}
{[%emt 00:00:03]} 3. Nf3 {[%clk 01:31:49]} {[%emt 00:00:05]} Nf6 {[%clk
01:31:50]} {[%emt 00:00:03]} 4. g3 {[%clk 01:32:16]} {[%emt 00:00:04]} Bb4+
{[%clk 01:32:16]} {[%emt 00:00:04]} 5. Bd2 {[%clk 01:32:39]} {[%emt 00:00:06]}
Be7 {[%clk 01:32:42]} {[%emt 00:00:04]} 6. Bg2 {[%clk 01:33:05]} {[%emt
00:00:04]} O-O {[%clk 01:33:08]} {[%emt 00:00:04]} 7. O-O {[%clk 01:33:32]}
{[%emt 00:00:03]} Nbd7 {[%clk 01:33:33]} {[%emt 00:00:05]} 8. Qc2 {[%clk
01:33:57]} {[%emt 00:00:05]} c6 {[%clk 01:33:59]} {[%emt 00:00:04]} 9. Bf4
{[%clk 01:34:15]} {[%emt 00:00:12]} Ne4 {[%clk 01:34:23]} {[%emt 00:00:06]} 10.
h4 {[%clk 01:34:41]} {[%emt 00:00:04]} h6 {[%clk 01:34:49]} {[%emt 00:00:04]}
11. Nc3 {[%clk 01:34:44]} {[%emt 00:00:27]} g5 {[%clk 01:35:14]} {[%emt
00:00:04]} 12. Bc1 {[%clk 01:35:05]} {[%emt 00:00:10]} f5 {[%clk 01:35:41]}
{[%emt 00:00:03]} 13. g4 {[%clk 01:34:52]} {[%emt 00:00:43]} Bd6 {[%clk
01:36:06]} {[%emt 00:00:05]} 14. hxg5 {[%clk 01:22:39]} {[%emt 00:12:43]} hxg5
{[%clk 01:35:14]} {[%emt 00:01:22]} 15. Nxe4 {[%clk 01:22:08]} {[%emt
00:01:01]} dxe4 {[%clk 01:35:20]} {[%emt 00:00:23]} 16. Bxg5 {[%clk 01:03:46]}
{[%emt 00:18:52]} Qe8 {[%clk 01:29:44]} {[%emt 00:06:05]} 17. Nh4 {[%clk
00:59:51]} {[%emt 00:04:25]} Nf6 {[%clk 01:27:44]} {[%emt 00:02:30]} 18. f3
{[%clk 00:49:30]} {[%emt 00:10:52]} Nh7 {[%clk 01:24:57]} {[%emt 00:03:16]} 19.
Bh6 {[%clk 00:43:32]} {[%emt 00:06:28]} Rf6 {[%clk 01:17:39]} {[%emt 00:07:49]}
20. Qd2 {[%clk 00:30:37]} {[%emt 00:13:26]} f4 {[%clk 01:12:13]} {[%emt
00:05:56]} 21. g5 {[%clk 00:29:56]} {[%emt 00:01:11]} e3 {[%clk 01:03:30]}
{[%emt 00:09:13]} 22. Qd3 {[%clk 00:28:30]} {[%emt 00:01:56]} Rxh6 {[%clk
01:03:52]} {[%emt 00:00:09]} 23. gxh6 {[%clk 00:28:58]} {[%emt 00:00:02]} Nf8
{[%clk 01:04:14]} {[%emt 00:00:08]} 24. h7+ {[%clk 00:21:37]} {[%emt 00:07:51]}
Kh8 {[%clk 01:04:03]} {[%emt 00:00:41]} 25. Bh3 {[%clk 00:10:59]} {[%emt
00:11:09]} Qh5 {[%clk 01:02:16]} {[%emt 00:02:16]} 26. Kh2 {[%clk 00:11:13]}
{[%emt 00:00:16]} Qxh4 {[%clk 00:59:45]} {[%emt 00:03:01]} 27. Rg1 {[%clk
00:11:42]} Qxh7 {[%clk 00:59:58]} {[%emt 00:00:17]} 28. Qxh7+ {[%clk 00:10:30]}
{[%emt 00:01:42]} Kxh7 {[%clk 00:59:50]} {[%emt 00:00:38]} 29. Rg4 {[%clk
00:06:46]} {[%emt 00:04:13]} e5 {[%clk 00:56:07]} {[%emt 00:04:13]} 30. Rg5
{[%clk 00:06:36]} {[%emt 00:00:39]} Kh6 {[%clk 00:44:28]} {[%emt 00:12:10]} 31.
Rag1 {[%clk 00:04:09]} {[%emt 00:02:57]} exd4 {[%clk 00:44:36]} {[%emt
00:00:23]} 32. c5 {[%clk 00:00:53]} {[%emt 00:03:45]} Be7 {[%clk 00:44:08]}
{[%emt 00:00:58]} 33. Rg8 {[%clk 00:00:59]} {[%emt 00:00:25]} Bxh3 {[%clk
00:44:25]} {[%emt 00:00:13]} 34. Kxh3 {[%clk 00:01:07]} {[%emt 00:00:21]} Rd8
{[%clk 00:42:44]} {[%emt 00:02:12]} 35. R8g7 {[%clk 00:00:43]} {[%emt
00:00:53]} Bxc5 {[%clk 00:38:14]} {[%emt 00:05:02]} 36. Rg8 {[%clk 00:00:45]}
{[%emt 00:00:26]} Be7 {[%clk 00:34:30]} {[%emt 00:04:16]} 37. Rh8+ {[%clk
00:00:45]} {[%emt 00:00:31]} Nh7 {[%clk 00:34:58]} {[%emt 00:00:01]} 38. Rxd8
{[%clk 00:01:09]} {[%emt 00:00:07]} Bxd8 {[%clk 00:35:23]} {[%emt 00:00:05]} 39.
Kg4 {[%clk 00:01:35]} {[%emt 00:00:03]} Bg5 {[%clk 00:31:52]} {[%emt 00:04:00]}
40. Kf5 {[%clk 00:02:00]} {[%emt 00:00:05]} c5 {[%clk 00:31:23]} {[%emt
00:00:59]} 41. Rc1 {[%clk 00:01:31]} {[%emt 00:00:59]} b6 {[%clk 00:31:28]}
{[%emt 00:00:25]} 42. a3 {[%clk 00:01:10]} {[%emt 00:00:52]} a5 {[%clk
00:28:33]} {[%emt 00:03:25]} 43. a4 {[%clk 00:01:02]} {[%emt 00:00:37]} Kg7
{[%clk 00:22:45]} {[%emt 00:06:18]} 44. b3 {[%clk 00:01:31]} {[%emt 00:00:01]}
d3 {[%clk 00:22:23]} {[%emt 00:00:52]} 45. exd3 {[%clk 00:01:57]} {[%emt
00:00:04]} Bh4 {[%clk 00:22:48]} {[%emt 00:00:05]} 46. Rc2 {[%clk 00:02:05]}
{[%emt 00:00:21]} Bg3 {[%clk 00:23:02]} {[%emt 00:00:16]} 47. d4 {[%clk
00:01:19]} {[%emt 00:01:16]} cxd4 {[%clk 00:22:51]} {[%emt 00:00:41]} 48. Rc7+
{[%clk 00:01:23]} {[%emt 00:00:25]} Kg8 {[%clk 00:22:37]} {[%emt 00:00:45]} 49.
Kg6 {[%clk 00:01:16]} {[%emt 00:00:36]} Nf8+ {[%clk 00:22:59]} {[%emt
00:00:08]} 50. Kh6 {[%clk 00:01:30]} {[%emt 00:00:17]} Ne6 {[%clk 00:22:27]}
{[%emt 00:01:01]} 0-1

[Event "LASK Schackstudion IM Tournament"]
[Site "Lund, Sweden"]
[Date "2022.08.16"]
[Round "3.2"]
[White "Jepson, Christian"]
[Black "Storme, Isak"]
[Result "1/2-1/2"]
[TimeControl "90 minutes + 30 sec increment starting from move 1."]
[WhiteTitle "IM"]
[BlackTitle "FM"]
[WhiteFideId "1701185"]
[BlackFideId "1728113"]
[WhiteElo "2395"]
[BlackElo "2416"]

1. Nf3 {[%clk 01:30:58]} {[%emt 00:00:01]} d5 {[%clk 01:25:27]} {[%emt
00:05:24]} 2. c4 {[%clk 01:31:20]} {[%emt 00:00:17]} e6 {[%clk 01:25:40]}
{[%emt 00:00:17]} 3. g3 {[%clk 01:31:35]} {[%emt 00:00:15]} Nf6 {[%clk
01:26:03]} {[%emt 00:00:06]} 4. Bg2 {[%clk 01:31:37]} {[%emt 00:00:27]} Be7
{[%clk 01:23:54]} {[%emt 00:02:40]} 5. O-O {[%clk 01:30:39]} {[%emt 00:01:29]}
O-O {[%clk 01:24:12]} {[%emt 00:00:11]} 6. b3 {[%clk 01:31:03]} {[%emt
00:00:06]} b6 {[%clk 01:22:17]} {[%emt 00:02:26]} 7. Bb2 {[%clk 01:25:40]}
{[%emt 00:05:53]} Bb7 {[%clk 01:21:34]} {[%emt 00:01:13]} 8. e3 {[%clk
01:25:28]} {[%emt 00:00:42]} c5 {[%clk 01:20:00]} {[%emt 00:02:04]} 9. Nc3
{[%clk 01:24:10]} {[%emt 00:01:47]} Nc6 {[%clk 01:09:27]} {[%emt 00:11:03]} 10.
cxd5 {[%clk 01:23:33]} {[%emt 00:01:07]} Nxd5 {[%clk 01:04:34]} {[%emt
00:05:23]} 11. Nxd5 {[%clk 01:23:37]} {[%emt 00:00:25]} Qxd5 {[%clk 01:02:43]}
{[%emt 00:02:21]} 12. d4 {[%clk 01:23:55]} {[%emt 00:00:13]} Qf5 {[%clk
00:46:22]} {[%emt 00:16:52]} 13. Ne5 {[%clk 00:23:18]} {[%emt 01:01:08]}
1/2-1/2